Cogmind - Beta 13 @@@ ROGUE MODE // 2024.06.02 @ 23:41:01 Player: QR-TZ Result: Core destroyed Performance ------------- Evolutions (3) 1500 Regions Visited (7) 1400 Robots Destroyed (43) 215 Value Destroyed (1204) 1204 Prototype IDs (5) 100 Alien Tech Used (0) 0 Bonus (0) 0 TOTAL SCORE: 4419 Bonus ------- None Cogmind --------- Core Integrity 0/700 Matter 83/300 Energy 140/290 System Corruption 5% Temperature Critical (849) Movement Rolling (160) Ox4 Location -7/Factory Parts ------- > --- POWER (1) -------- Improved Deuterium Engine > --- PROPULSION (2) --- Armored Huge Wheel > --- UTILITY (6) ------ Huge Storage Unit Medium Armor Plating Medium Armor Plating Medium Armor Plating Authchip [R/Combat] > --- WEAPON (4) ------- Heavy Laser Plasma Cannon Heavy Assault Rifle Gauss Cannon > --- INVENTORY (25) --- Improved Heat Sink Improved Cooling System Small Storage Unit Lightning Gun Flak Cannon Heavy Missile Launcher Heavy Missile Launcher Peak State ------------ > --- POWER ------------ Improved Deuterium Engine > --- PROPULSION ------- Armored Huge Wheel > --- UTILITY ---------- Improved Sensor Array Medium Armor Plating Medium Armor Plating Improved Light Armor Plating Authchip [R/Combat] > --- WEAPON ----------- Precision Shock Rifle Heavy Laser Plasma Cannon Heavy Assault Rifle > --- INVENTORY -------- Improved Heat Sink Improved Cooling System Lightning Gun Shotgun Shotgun [Rating: 42] Favorites ----------- Power Heavy Ion Engine Engine Heavy Ion Engine Propulsion Compact Wheel Leg Aluminum Leg Wheel Compact Wheel Utility Hardened Light Armor Plating Device Cooling System Storage Large Storage Unit Processor Improved Targeting Computer Hackware Authchip [R/Combat] Protection Hardened Light Armor Plating Weapon Medium Laser Energy Gun Medium Laser Energy Cannon Advanced Beam Cannon Ballistic Gun Heavy Assault Rifle Ballistic Cannon Light Cannon Launcher Rocket Launcher Build | -11 -10 -9 -9 -8 -7 -7 -7 ------- Run | Yrd Mat Mat Min Mat Fac Was Fac Slots Evolved 6 | . . 2 . 2 2 . . Power . | . . . . . . . . Propulsion . | . . . . . . . . Utility 4 | . . 1 . 1 2 . . Weapon 2 | . . 1 . 1 . . . Parts Attached 70 | 6 6 13 . 8 15 4 18 Power 5 | 1 1 1 . . 1 . 1 Engine 5 | 1 1 1 . . 1 . 1 Core . | . . . . . . . . Reactor . | . . . . . . . . Propulsion 9 | 2 2 . . 1 1 1 2 Treads . | . . . . . . . . Leg 2 | 2 . . . . . . . Wheel 7 | . 2 . . 1 1 1 2 Hover . | . . . . . . . . Flight . | . . . . . . . . Utility 25 | 1 1 6 . 2 6 1 8 Device 7 | . . 3 . 2 1 . 1 Storage 5 | 1 . 1 . . 1 . 2 Processor 1 | . . . . . 1 . . Hackware 1 | . . . . . . 1 . Protection 11 | . 1 2 . . 3 . 5 Artifact . | . . . . . . . . Weapon 31 | 2 2 6 . 5 7 2 7 Energy Gun 10 | 2 1 1 . 1 3 . 2 Energy Cannon 4 | . . 2 . . 1 . 1 Ballistic Gun 10 | . . 3 . 2 3 . 2 Ballistic Cannon 4 | . 1 . . 1 . . 2 Launcher 3 | . . . . 1 . 2 . Special Weapon . | . . . . . . . . Impact Weapon . | . . . . . . . . Slashing Weapon . | . . . . . . . . Piercing Weapon . | . . . . . . . . Special Melee Weapon . | . . . . . . . . Unidentified Prototypes 5 | . . 2 . 1 1 . 1 Corrupted Parts 1 | . . . . . . 1 . System Corruption 5 | . . . . . . 5 . Parts Lost 16 | . 2 2 . 1 2 8 1 Power 1 | . 1 . . . . . . Propulsion 2 | . 1 . . . . 1 . Utility 7 | . . 1 . . 1 4 1 Weapon 6 | . . 1 . 1 1 3 . Highest Loss Streak 6 | . 2 1 . 1 2 6 1 To Critical Strikes 1 | . . . . . 1 . . Average Slot Usage (%) 89 | . 95 99 100 99 99 66 67 Engine 8 | . 13 11 11 9 7 5 4 Leg 2 | . 10 . . . . . . Wheel 14 | . 15 22 22 17 15 10 6 Device 8 | . . 11 11 18 13 4 6 Storage 8 | . 14 11 11 9 7 5 1 Processor 1 | . . . . . 7 5 . Hackware 1 | . . . . . . . 7 Protection 12 | . 11 10 11 9 16 13 11 Energy Gun 13 | . 26 11 11 10 8 5 10 Energy Cannon 4 | . . 3 11 9 5 5 6 Ballistic Gun 7 | . . 11 11 11 15 6 6 Ballistic Cannon 2 | . 1 7 . 4 . . 2 Naked Turns 51 | . . . . . . 51 . Heaviest Build 133 | 14 18 43 43 47 82 82 133 Greatest Support 32 | 20 32 32 32 32 32 32 28 Greatest Overweight (x) 4 | 2 1 1 1 2 2 2 4 Average Overweight (x) . | . . . 1 1 1 . . Largest Inventory Capacity 25 | 8 8 15 15 15 20 20 25 Average Capacity 11 | 7 8 14 15 15 15 15 8 Most Carried 20 | 3 8 15 15 15 19 20 7 Average Carried 9 | 1 5 10 15 13 15 14 4 Final Capacity 25 | 8 8 15 15 15 20 5 25 Final Carried 18 | 3 8 15 15 15 18 4 7 Class Distribution -------------------- 61% | Tank 33% | Mutant 4% | Skirmisher Dominant Class ---------------- Mutant | -10/Materials Tank | -9/Materials Tank | -9/Mines Tank | -8/Materials Tank | -7/Factory Mutant | -7/Waste Tank | -7/Factory Resources | -11 -10 -9 -9 -8 -7 -7 -7 ----------- Run | Yrd Mat Mat Min Mat Fac Was Fac Matter Collected 1192 | 195 119 221 . 23 407 71 156 Remotely . | . . . . . . . . Salvage Created 1819 | . 291 163 . 95 780 257 233 Parts 87 | . 22 11 . 7 36 2 9 Haulers Intercepted 4 | . 1 1 . . 2 . . Recyclers Shooed 2 | . . . . 1 . . 1 Parts Field Recycled . | . . . . . . . . Retrieved Matter . | . . . . . . . . Parts Self-Destructed . | . . . . . . . . Prevented . | . . . . . . . . Kills | -11 -10 -9 -9 -8 -7 -7 -7 ------- Run | Yrd Mat Mat Min Mat Fac Was Fac Combat Hostiles Destroyed 34 | . 12 5 . 3 11 1 2 Guns 25 | . 11 3 . 2 7 1 1 Cannons 6 | . . 2 . . 3 . 1 AOE 1 | . . . . 1 . . . Classes Destroyed 10 | . 3 . . . 4 1 2 Worker 2 | . . . . . . . 2 Hauler 4 | . 1 1 . . 2 . . Recycler 3 | . . . . . 2 . 1 Swarmer 12 | . 9 3 . . . . . Grunt 13 | . 3 2 . 3 5 . . Duelist 1 | . . . . . . . 1 Sentry 4 | . . . . . 4 . . Hunter 1 | . . . . . 1 . . Programmer 2 | . . . . . 1 . 1 Compactor 1 | . . . . . . 1 . Best Kill Streak 8 | . 4 3 . 2 8 1 1 Combat Bots Only 3 | . 3 3 . 2 3 1 1 Max Kills in Single Turn 1 | . 1 1 . 1 1 1 1 Gunslinging . | . . . . . . . . Exploded 1 | . . . . 1 . . . Melee . | . . . . . . . . Uniques/NPCs Destroyed . | . . . . . . . . Combat | -11 -10 -9 -9 -8 -7 -7 -7 -------- Run | Yrd Mat Mat Min Mat Fac Was Fac Hostile Shots Fired 318 | . 76 33 . 18 160 13 18 Missed 102 | . 25 5 . 6 61 . 5 Damage Taken 2991 | . 459 312 . 226 757 745 492 Core 879 | . 66 80 . 20 137 405 171 Absorbed by Shields . | . . . . . . . . Regen/Repaired (Parts) 18 | . . . . 18 . . . Core Remaining (%) 87 | 100 73 . 80 96 . . . Volleys Fired 124 | . 41 23 . 12 26 10 12 Largest 4 | . 2 3 . 3 4 4 4 Hottest 227 | . 100 141 . 151 206 221 227 Shots Fired 350 | . 80 59 . 28 103 36 44 Gun 262 | . 75 40 . 19 85 19 24 Cannon 78 | . 5 19 . 6 18 10 20 Launcher 10 | . . . . 3 . 7 . Special . | . . . . . . . . Kinetic 130 | . 5 33 . 12 52 9 19 Thermal 209 | . 75 26 . 13 51 20 24 Explosive 10 | . . . . 3 . 7 . Electromagnetic 1 | . . . . . . . 1 Robot Hit Streak 19 | . 5 7 . 8 19 8 9 Robot Miss Streak 7 | . 4 4 . 4 3 7 7 Penetration Max . | . . . . . . . . Secondary Targets . | . . . . . . . . Shots Hit Robots 210 | . 41 37 . 14 67 28 23 Core Hits 91 | . 15 10 . 9 40 9 8 Critical Kills . | . . . . . . . . Critical Parts Destroyed . | . . . . . . . . Critical Strikes 2 | . . . . . 1 . 1 Burn 1 | . . . . . 1 . . Blast 1 | . . . . . . . 1 Melee Attacks . | . . . . . . . . Impact . | . . . . . . . . Slashing . | . . . . . . . . Piercing . | . . . . . . . . Sneak Attacks . | . . . . . . . . Combat Hostiles . | . . . . . . . . Follow-up Attacks . | . . . . . . . . Damage Inflicted 4318 | . 543 506 . 359 1284 1065 561 Guns 2487 | . 488 275 . 111 1006 367 240 Cannons 1145 | . 55 231 . 60 278 200 321 Explosions 686 | . . . . 188 . 498 . Melee . | . . . . . . . . Ramming . | . . . . . . . . Kinetic 1078 | . 55 235 . 48 335 146 259 Thermal 2550 | . 488 271 . 123 949 421 298 Explosive 686 | . . . . 188 . 498 . Electromagnetic 4 | . . . . . . . 4 Impact . | . . . . . . . . Slashing . | . . . . . . . . Piercing . | . . . . . . . . Highest Corruption 5 | . . 3 3 . . 5 5 Average Corruption 4 | . . 3 3 . . 5 5 Corruption Purged . | . . . . . . . . Corruption Blocked . | . . . . . . . . Effects 22 | . . 3 2 . . . 17 Message Errors 7 | . . . . . . . 7 Matter Fused 3 | . . . . . . . 3 Heat Flow Errors 2 | . . . 1 . . . 1 Energy Discharges 1 | . . . . . . . 1 Parts Rejected 1 | . . . . . . . 1 Data Loss (minor) 4 | . . 1 1 . . . 2 Alerts 1 | . . . . . . . 1 Weapon Failures 3 | . . 2 . . . . 1 Overload Shots . | . . . . . . . . Overflow Damage 35 | . . . . . . 10 25 Projectiles 25 | . . . . . . . 25 Explosions 10 | . . . . . . 10 . Melee . | . . . . . . . . Knockbacks 5 | . 2 . . . . . 3 Impact . | . . . . . . . . Kinetic 3 | . 1 . . . . . 2 Secondary 2 | . 1 . . . . . 1 Self-Inflicted Damage 181 | . . . . . . 181 . Shots 5 | . . . . . . 5 . Rammed . | . . . . . . . . Targets Rammed . | . . . . . . . . Kicked . | . . . . . . . . Crushed . | . . . . . . . . Highest Temperature 849 | . 360 428 179 294 194 298 849 Average Temperature 143 | . 118 202 94 190 71 113 220 Received Heat Transfer 621 | . 102 129 . 108 183 . 99 Effects 20 | . 4 4 . 3 . . 9 Shutdowns 1 | . . . . . . . 1 Energy Bleed 4 | . 2 . . . . . 2 Interference 10 | . 1 4 . 3 . . 2 Matter Decay 1 | . . . . . . . 1 Short Circuit 1 | . 1 . . . . . . Damage (minor) 1 | . . . . . . . 1 Damage (major) 1 | . . . . . . . 1 Damage (core) 1 | . . . . . . . 1 Siege Activations . | . . . . . . . . Robots Corrupted . | . . . . . . . . Combat Hostiles . | . . . . . . . . Parts Fried . | . . . . . . . . Impact Corruptions . | . . . . . . . . Robots Melted 3 | . 2 . . . 1 . . Combat Hostiles 2 | . 1 . . . 1 . . Parts Melted 16 | . 5 . . . 10 . 1 Heat Transferred 5720 | . 1443 666 . 296 1947 796 572 Parts Sabotaged . | . . . . . . . . Parts Stolen . | . . . . . . . . Parts Stripped . | . . . . . . . . Power Chain Reactions . | . . . . . . . . Alert | -11 -10 -9 -9 -8 -7 -7 -7 ------- Run | Yrd Mat Mat Min Mat Fac Was Fac Peak Influence 305 | . 269 178 77 161 305 112 131 Initial 106 | . . 62 69 29 72 106 46 Average 97 | . 90 142 74 71 149 84 55 Maximum Alert Level 1 | . 1 . . . 1 . . Low Security (%) 91 | 100 93 100 100 100 67 100 100 Level 1 8 | . 6 . . . 32 . . Level 2 . | . . . . . . . . Level 3 . | . . . . . . . . Level 4 . | . . . . . . . . Level 5 . | . . . . . . . . High Security . | . . . . . . . . Max Security . | . . . . . . . . Squads Dispatched 4 | . 1 . . 1 1 . 1 Investigation 1 | . 1 . . . . . . Extermination 2 | . . . . . 1 . 1 Reinforcement 1 | . . . . 1 . . . Assault . | . . . . . . . . Garrison . | . . . . . . . . Intercept . | . . . . . . . . Searches Triggered . | . . . . . . . . Construction Impeded . | . . . . . . . . Haulers Reinforced . | . . . . . . . . Active Scanning Responses . | . . . . . . . . Cargo Convoy Interrupts . | . . . . . . . . Stealth | -11 -10 -9 -9 -8 -7 -7 -7 --------- Run | Yrd Mat Mat Min Mat Fac Was Fac Distress Signals 5 | . 2 2 . . 1 . . Communications Jammed . | . . . . . . . . Distress Signals . | . . . . . . . . Times Spotted 62 | . 17 6 . 7 17 6 9 Peak Tracking Total 7 | . 4 6 . 4 7 5 4 Tactical Retreats 3 | . 1 . . . 2 . . Traps | -11 -10 -9 -9 -8 -7 -7 -7 ------- Run | Yrd Mat Mat Min Mat Fac Was Fac Traps Triggered 4 | . 1 . . . 1 . 2 Indirectly . | . . . . . . . . Trap Hack Attempts . | . . . . . . . . Triggered . | . . . . . . . . Disarmed . | . . . . . . . . Reprogrammed . | . . . . . . . . Reused . | . . . . . . . . Traps Extracted . | . . . . . . . . Installed . | . . . . . . . . Triggered . | . . . . . . . . Machines | -11 -10 -9 -9 -8 -7 -7 -7 ---------- Run | Yrd Mat Mat Min Mat Fac Was Fac Machines Disabled 1 | . . . . 1 . . . Max in Single Turn 1 | . . . . 1 . . . Machines Repaired . | . . . . . . . . Machines Dismantled . | . . . . . . . . Machines Sabotaged . | . . . . . . . . Overloaded Fab Kills . | . . . . . . . . Hacking | -11 -10 -9 -9 -8 -7 -7 -7 --------- Run | Yrd Mat Mat Min Mat Fac Was Fac Machines Accessed 16 | . 6 2 1 4 1 . 2 Terminals 11 | . 5 2 1 2 . . 1 Fabricators 2 | . . . . . 1 . 1 Repair Stations 2 | . 1 . . 1 . . . Recycling Units . | . . . . . . . . Scanalyzers 1 | . . . . 1 . . . Garrison Access . | . . . . . . . . Total Hacks 38 | . 11 8 3 11 2 . 3 Successful 18 | . 3 3 1 8 . . 3 Failed 20 | . 8 5 2 3 2 . . Catastrophic 7 | . 3 . 1 2 1 . . Database Lockouts . | . . . . . . . . Manual 12 | . 3 2 3 4 . . . Terminals 26 | . 8 8 3 5 . . 2 Fabricators 3 | . . . . . 2 . 1 Repair Stations 5 | . 3 . . 2 . . . Recycling Units . | . . . . . . . . Scanalyzers 4 | . . . . 4 . . . Garrison Access . | . . . . . . . . Terminal Hacks 10 | . 2 3 1 2 . . 2 Record 3 | . . 1 . . . . 2 Robot Analysis 1 | . 1 . . . . . . Branch Access Points 4 | . 1 1 1 1 . . . Alert Level 1 | . . . . 1 . . . Hauler Manifests 1 | . . 1 . . . . . Fabricator Hacks 1 | . . . . . . . 1 Build 1 | . . . . . . . 1 Repair Station Hacks 3 | . 1 . . 2 . . . Scan Component 2 | . 1 . . 1 . . . Repair 1 | . . . . 1 . . . Recycling Unit Hacks . | . . . . . . . . Scanalyzer 4 | . . . . 4 . . . Insert Component 2 | . . . . 2 . . . Analyze 2 | . . . . 2 . . . Garrison Access Hacks . | . . . . . . . . Unauthorized Hacks . | . . . . . . . . Terminals . | . . . . . . . . Fabricators . | . . . . . . . . Repair Stations . | . . . . . . . . Recycling Units . | . . . . . . . . Scanalyzers . | . . . . . . . . Garrison Access . | . . . . . . . . Data Cores Recovered . | . . . . . . . . Used . | . . . . . . . . Hacking Detections 13 | . 6 2 . 4 1 . . Full Trace Events . | . . . . . . . . Feedback Events . | . . . . . . . . Feedback Blocked . | . . . . . . . . Robot Schematics Acquired . | . . . . . . . . Robots Built 1 | . . . . . . . 1 Authchips . | . . . . . . . . Time 81 | . . . . . . . 81 Total Robot Build Rating 1 | . . . . . . . 1 Part Schematics Acquired 2 | . . . . 2 . . . Parts Built . | . . . . . . . . Authchips . | . . . . . . . . Time . | . . . . . . . . Total Part Build Rating . | . . . . . . . . Parts Repaired 1 | . . . . 1 . . . Time 26 | . . . . 26 . . . Parts Recycled . | . . . . . . . . Recycled Matter . | . . . . . . . . Retrieved Matter . | . . . . . . . . Retrieved Components . | . . . . . . . . Parts Scanalyzed 2 | . . . . 2 . . . Part Schematics Acquired 2 | . . . . 2 . . . Parts Damaged . | . . . . . . . . Bothacking | -11 -10 -9 -9 -8 -7 -7 -7 ------------ Run | Yrd Mat Mat Min Mat Fac Was Fac Used RIF Installer . | . . . . . . . . Robots Hacked . | . . . . . . . . Non-combat . | . . . . . . . . Combat . | . . . . . . . . Robot Hacks Applied . | . . . . . . . . Relay Couplers Released . | . . . . . . . . Fabnet Peak Effective % . | . . . . . . . . Robots Rewired . | . . . . . . . . Allies Hacked . | . . . . . . . . Hacks Repelled . | . . . . . . . . Allies | -11 -10 -9 -9 -8 -7 -7 -7 -------- Run | Yrd Mat Mat Min Mat Fac Was Fac Total Allies 2 | . . . . . . 1 1 Largest Group 1 | . . . . . . 1 1 Highest-Rated Group 31 | . . . . . . 31 10 Highest-Rated Ally 31 | . . . . . . 31 10 Total Orders . | . . . . . . . . Ally Attacks 8 | . . . . . . 8 . Total Damage 167 | . . . . . . 167 . Kills . | . . . . . . . . Allies Corrupted . | . . . . . . . . Allies Melted . | . . . . . . . . Intel | -11 -10 -9 -9 -8 -7 -7 -7 ------- Run | Yrd Mat Mat Min Mat Fac Was Fac Robot Analysis Total 1 | . 1 . . . . . . Derelict Logs Recovered . | . . . . . . . . Drone Launches . | . . . . . . . . Drone Recoveries . | . . . . . . . . Exploration | -11 -10 -9 -9 -8 -7 -7 -7 ------------- Run | Yrd Mat Mat Min Mat Fac Was Fac Turns Passed 2852 | 59 735 287 72 312 644 188 555 Spaces Moved 1862 | 39 476 163 47 208 363 169 397 Core 160 | 7 . . . . . 98 55 Treads . | . . . . . . . . Legs 125 | 32 93 . . . . . . Wheels 1577 | . 383 163 47 208 363 71 342 Hover . | . . . . . . . . Flight . | . . . . . . . . Fastest Speed 50 | 50 100 100 115 115 115 50 50 Average Speed 111 | 120 117 113 115 115 116 81 108 Slowest Speed 190 | 190 190 115 115 130 125 130 160 Overloaded Moves . | . . . . . . . . Propulsion Burnouts . | . . . . . . . . Robots Hopped . | . . . . . . . . Cave-ins Triggered . | . . . . . . . . Exploration Rate (%) 29 | 4 85 20 6 18 10 79 12 Regions Visited 7 Branch Regions 1 Pre-discovered Areas . | . . . . . . . . Known Exits Taken 1 | . . 1 . . . . . Unknown Exits Taken 4 | 1 1 . 1 1 . . . Scrap Searched . | . . . . . . . . Spaces Dug . | . . . . . . . . Terrain Destroyed 57 | . . . . 19 . 37 1 Melee . | . . . . . . . . Projectile 3 | . . . . 2 . . 1 AOE 54 | . . . . 17 . 37 . Terrain Rammed . | . . . . . . . . Walls Destroyed . | . . . . . . . . Machines Disabled . | . . . . . . . . Actions | -11 -10 -9 -9 -8 -7 -7 -7 --------- Run | Yrd Mat Mat Min Mat Fac Was Fac Total 2363 | 48 568 218 65 256 525 192 491 Wait 221 | . 38 2 19 17 88 6 51 Move 1856 | 38 475 162 46 207 363 168 397 Hop . | . . . . . . . . Pick Up 55 | 4 7 11 . 6 17 3 7 Fast Attach 26 | 5 2 3 . 3 3 . 10 Attach 23 | 1 1 4 . 3 5 3 6 Detach 4 | . . 1 . 1 . . 2 Swap 21 | . 3 6 . 2 7 1 2 Drop 33 | . 1 6 . 5 16 1 4 Fire 124 | . 41 23 . 12 26 10 12 Melee . | . . . . . . . . Ram . | . . . . . . . . Kick . | . . . . . . . . Crush . | . . . . . . . . Escape Stasis . | . . . . . . . . Rewire . | . . . . . . . . Trap . | . . . . . . . . Miscellaneous . | . . . . . . . . Route ------- -11/Scrapyard -10/Materials (discovered 4 exits: *Mat x3 / *Min) -9/Materials -9/Mines -8/Materials -7/Factory -7/Waste -7/Factory History --------- Turn | Location | Event 21 | -11/Scrapyard | Discovered new exit (range 15) 60 | -11/Scrapyard | Entered Materials 309 | -10/Materials | Build established: Mutant 326 | -10/Materials | Discovered new exit (range 10) 540 | -10/Materials | Discovered new exit (range 3) 638 | -10/Materials | Identified exit to Mines 671 | -10/Materials | Discovered new exit (range 4) 795 | -10/Materials | Entered another Materials area 795 | -9/Materials | Evolved 2 slots: Utility x1, Weapon x1 825 | -9/Materials | Identified exit to Mines 1082 | -9/Materials | Entered Mines 1092 | -9/Mines | Discovered new exit (range 8) 1154 | -9/Mines | Entered Materials 1154 | -8/Materials | Evolved 2 slots: Utility x1, Weapon x1 1176 | -8/Materials | Build established: Tank 1327 | -8/Materials | Repaired Com. Wheel 1444 | -8/Materials | Discovered new exit (range 16) 1466 | -8/Materials | Entered Factory 1466 | -7/Factory | Evolved 2 slots: Utility x2 2110 | -7/Factory | Sucked down chute 2110 | -7/Factory | Entered Waste 2111 | -7/Waste | Met a frightened Derelict 2126 | -7/Waste | Spotted C-40 Crusher 2143 | -7/Waste | Destroyed C-40 Crusher 2185 | -7/Waste | Spotted C-40 Crusher 2197 | -7/Waste | Crushed by Compactor (1 part destroyed, 1 dropped) 2217 | -7/Waste | Spotted C-40 Crusher 2231 | -7/Waste | Crushed by Compactor (1 part destroyed, 1 dropped) 2234 | -7/Waste | Crushed by Compactor (1 part destroyed, 1 dropped) 2239 | -7/Waste | Spotted C-40 Crusher 2240 | -7/Waste | Crushed by Compactor (1 part destroyed, 2 dropped) 2243 | -7/Waste | Crushed by Compactor (1 part destroyed, 1 dropped) 2246 | -7/Waste | Crushed by Compactor (1 part destroyed, 1 dropped) 2253 | -7/Waste | Core integrity fell below 50% 2265 | -7/Waste | Spotted C-40 Crusher 2277 | -7/Waste | Lost 6 parts (1n3u2w) 2280 | -7/Waste | Spotted C-40 Crusher 2293 | -7/Waste | Discovered new exit (range 10) 2298 | -7/Waste | Entered Factory 2571 | -7/Factory | Fabricated A-02 Transporter (x1) 2854 | -7/Factory | Core destroyed Last Messages --------------- 02830_ G-47 Trooper emerges from a hatch in the floor. 02830_ Critical hit (Burn: +37). 02838_ System corrupted: Hvy. Assault Rifle jammed. 02839_ Overheating: Energy bleed (-54). 02839_ U-05 Engineer lays Concrete. 02841_ Slug penetrates L-41 Fighter. 02841_ L-41 Fighter knocked back. 02843_ Overheating: Hvy. Laser damaged (-27). 02844_ Power failure, Imp. Deuterium Engine shutdown. 02845_ System corrupted: Component data lost. 02846_ Imp. Sensor Array destroyed. 02848_ Overheating: Matter decay (-17). 02848_ L-41 Fighter destroyed. 02848_ Slug penetrates G-47 Trooper. 02848_ G-47 Trooper Aluminum Leg blasted off. 02848_ G-47 Trooper knocked back. 02850_ Overheating: Energy bleed (-29). 02853_ Overheating: Arm. Huge Wheel damaged (-108). 02853_ K-01 Serf collects debris. 02854_ Overheating: Core damaged (-140). Map ----- +----------------------------------------------------+ | # """" !! # # """" #?? | | # """" [[# """ # """" #?? | | # """" # """ # #?? | | ######### #! != # """ # #?? | | # # ###+##+####### ! # #?? | | + # #######+#########+#######?? | | # """ + ######? | | # """ # +? | | # """ # #? | | # ! # ################ ! #? | | ### """ # ########????# # #? | | # """ # #???????????# + ! #? | | " # """ # #???????????# ###### #? | | " # # #???????????# ! !#????? #? | | # # #???????????# #????? #? | | ########### #???????????# #?????? #? | | ??????????# # ??????????# #?????? | | ??????????# # ?????????# #??????? | | ??????????# %###/#############+########## | | ???????????? % ?? | | ????????????? = ?? | | ???????????? w ""?? | | ???????????? % m ""?? | | ???????????? % /g= ? | | ??????????????????#######kg######+##### ? | | ?????????????????????# @% # #? """ ??? | | ?????????????????????# # #?? """"????? | | ?????????????????????# # #???""""????? | | ?????????????????????# # #???? ??????? | | ?????????????????????# # #???????????? | | ?????????????????????# # #???????????? | | ?????????????????????# # #???????????? | | ?????????????????????# # #???????????? | | ?????????????????????# = # #???????????? | | ?????????????????????# # #???????????? | | ?????????????????????# # #???????????? | | ?????????????????????# !!! # #???????????? | | ?????????????????????# !!! # #???????????? | | ?????????????????????# !!! ########???????????? | | ?????????????????????#########???????????????????? | | ?????????????????????????????????????????????????? | | ?????????????????????????????????????????????????? | | ?????????????????????????????????????????????????? | | ?????????????????????????????????????????????????? | | ?????????????????????????????????????????????????? | | ?????????????????????????????????????????????????? | | ?????????????????????????????????????????????????? | | ?????????????????????????????????????????????????? | | ?????????????????????????????????????????????????? | | ?????????????????????????????????????????????????? | +----------------------------------------------------+ Best States ------------- Heat Dissipation 66 Energy Generation 16 Energy Capacity 290 Matter Stores 300 Matter Capacity 300 Sight Range 16 Robot Scan Range 15 Terrain Scan Density 10 Armor Coverage 825 Evasion (%) 55 Targeting Accuracy 6 Authchip Count 1 Item Schematics ----------------- Hcp. Storage Unit | -8/Materials | Scanalyzed Imp. Targeting Computer | -8/Materials | Scanalyzed Robot Schematics ------------------ None Fabricated ------------ A-02 Transporter | x1 | -7/Factory | Preloaded Alien Tech Used ----------------- None Achievements -------------- None Challenges ------------ None Game ------ Seed StasisMomentumBarrier Manual? 0 Play Time 00:48:49 Cumulative 17.1 hours Start 2024.06.02 @ 13:24:54 End 2024.06.02 @ 23:41:01 Sessions 2 Manual Loads 0 Difficulty Rogue Special Mode None Game No. 8 Rogue 8 Adventurer 0 Explorer 0 Win Type - Total 1 Types 1/0/0/0/0/0/0/0/0 Lore% 20 Gallery% 22 Achievement% 23 Wizard Run 0 Options --------- Layout 0 ASCII 0 Keyboard 0 Movement Mouse Keybinds 0 Fullscreen 1 Font 18/SmallcapsGlow Map View 76x50 Zoom Use 0% Tactical HUD 1 Map Filters NONE Filters NONE Steam 1 RUN: 81356014-f3e4-4dea-a5e1-a8128fe56212